[Event "Israeli Team-ch 2023"]
[Site "Petah Tikva"]
[Date "2023.02.03"]
[Round "5.13"]
[White "Smirin, Ilia"]
[Black "Parkhov, Yair"]
[Result "1-0"]
[ECO "A07"]
[WhiteElo "2596"]
[BlackElo "2467"]
[Annotator "TA"]
[PlyCount "175"]
[EventDate "2023.01.13"]
[EventCountry "ISR"]
[SourceTitle "playchess.com"]
[Source "ChessBase"]
[SourceQuality "1"]
[TimeControl "40/5400+30:1800+30"]

{[%evp 18,175,0,-38,-43,-44,-44,-37,-44,-43,-21,-37,-19,-29,0,9,35,29,43,46,49,23,33,28,41,27,36,28,36,42,44,34,93,90,143,141,139,111,113,116,103,104,122,108,112,28,285,237,481,402,527,532,524,522,566,218,185,22,287,273,335,334,335,315,443,185,202,194,195,152,246,214,1352,1310,1210,1133,1247,1129,920,908,1796,1732,1817,937,691,398,319,320,615,407,366,371,671,671,664,379,664,660,1630,1736,29980,1214,7551,29940,29979,29980,29979,29976,29979,291,29964,819,29957,29955,5627,5220,8332,6666,29952,814,29967,29967,29970,29971,29973,29974,29974,29974,29975,29976,29977,29978,29980,29981,29981,29982,29982,29978,29978,29979,29979,29980,29980,29981,29981,29982,29981,29982,29986,29987,29987,29988,29989,29983,29983,29984,29984,29985,29985,29986]} 1. Nf3 {[%emt 0:19:49]} d5 {[%emt 0:00:04]} 2. g3 {[%emt 0:00:12]} g6 {[%emt 0:00:01]} 3. Bg2 {[%emt 0:00:16]} Bg7 {[%emt 0:00:07]} 4. O-O {[%emt 0:00:52]} e5 {[%emt 0:00:04]} 5. d3 {[%emt 0:01:54]} Ne7 {[%emt 0:00:05]} 6. e4 {[%emt 0:00:43]} O-O {[%emt 0:00:14]} 7. Nbd2 {[%emt 0:03:32]} Nbc6 {[%emt 0:01:04]} 8. c3 {[%emt 0:03:18]} a5 {[%emt 0:00:05]} 9. a4 {[%emt 0:01:52]} h6 {[%emt 0:03:55]} 10. b3 {[%emt 0:07:40]} d4 {[%emt 0:06:42]} 11. cxd4 {[%emt 0:00:43]} Nxd4 {[%emt 0:02:10]} 12. Nxd4 {[%emt 0:04:27]} Qxd4 {[%emt 0:02:06]} 13. Ba3 {[%emt 0:00:07]} Re8 {[%emt 0:02:47]} 14. Nc4 {[%emt 0:01:28]} Nc6 {[%emt 0:02:56]} 15. Ne3 {[%emt 0:02:58]} Be6 {[%emt 0:13:03]} 16. Nd5 {[%emt 0:00:19]} Bxd5 {[%emt 0:02:26]} (16... Rac8 $5 {[%cal Rc6b4]}) 17. exd5 {[%emt 0:00:10]} Nb4 {[%emt 0:00:36]} 18. Rc1 {[%emt 0:00:26]} Qb6 {[%emt 0:05:09]} 19. h4 {[%emt 0:06:04]} h5 {[%emt 0:01:51]} 20. Bxb4 {[%emt 0:06:28]} axb4 {[%emt 0:00:07]} 21. Rc4 {[%emt 0:04:00]} Bf8 {[%emt 0:15:08]} 22. g4 {[%emt 0:00:09]} hxg4 {[%emt 0:40:50]} 23. Qxg4 {[%emt 0:00:10]} f5 {[%emt 0:00:00]} 24. Qh3 {[%emt 0:03:15]} Re7 {[%emt 0:00:00]} (24... Rad8 $14) 25. d6 $1 $16 {[%emt 0:00:31]} Qxd6 {[%emt 0:00:00]} (25... Rg7 $142) 26. Bxb7 $16 {[%emt 0:00:17]} Rd8 {[%emt 0:00:00]} 27. a5 {[%emt 0:03:23]} c5 {[%emt 0:00:00]} 28. a6 {[%emt 0:00:19]} Qb6 {[%emt 0:00:00]} 29. Ra1 {[%emt 0:16:17]} Bg7 {[%emt 0:00:00]} 30. Ra2 {[%emt 0:01:31]} Red7 {[%emt 0:00:00]} 31. Qe3 {[%emt 0:03:05]} (31. Qf3 $16) 31... f4 $2 {[%emt 0:00:00][%mdl 8192]} (31... Rxd3 $11 32. Qxc5 Qf6) 32. Qe4 {[%emt 0:03:52]} Qa7 $2 {[%emt 0:00:00]} (32... Rxd3 $2 33. a7 Qe6 34. a8=Q $18 (34. a8=N $2 Qh3 $19)) (32... Bf6 33. a7 (33. Qxg6+ $2 Rg7 $19) 33... Qxb7) 33. Qc6 {[%emt 0:01:34]} Kh7 {[%emt 0:00:38]} 34. h5 {[%emt 0:01:35]} (34. Rxc5 Rxb7 35. Qxb7 Qxc5 $16) 34... gxh5 {[%emt 0:00:34]} 35. Ra5 {[%emt 0:02:31]} Bf8 {[%emt 0:00:39]} 36. Qf3 $2 {[%emt 0:00:59]} (36. Qe4+ Kg8 37. Rb5 (37. Qxe5 Qb6 $16)) 36... Qb6 $18 {[%emt 0:00:42]} 37. Be4+ $2 {[%emt 0:00:46]} (37. Qxh5+ $18 Kg8 38. Ra1) 37... Kg8 $2 {[%emt 0:00:05][%mdl 8192]} (37... Kh6 $1 $11 {and Black is okay.} 38. Ra1 Rg7+ 39. Kh2 Rdd7) 38. Ra1 $18 {[%emt 0:00:19]} Rg7+ {[%emt 0:00:39]} 39. Kf1 {[%emt 0:00:48]} Ra7 {[%emt 0:02:37]} 40. Qxh5 {[%emt 0:00:44]} Bg7 {[%emt 0:01:19]} (40... Qf6 {is a better defense.} 41. Ke2 Bg7 42. Rxc5 f3+ 43. Qxf3 (43. Bxf3 e4 $11) 43... Qxf3+ 44. Kxf3 Rd6) 41. Rac1 {[%emt 0:09:08]} (41. d4 $142 Qh6 42. Qxh6 Bxh6 43. dxc5) 41... Rxa6 {[%emt 0:02:12]} 42. Rxc5 {[%emt 0:00:14]} (42. Qh7+ Kf8) 42... Qh6 {[%emt 0:02:27]} 43. Qf3 {[%emt 0:02:24]} Rad6 {[%emt 0:08:00]} (43... Qg5 $16 44. Rc6 Rxc6 45. Rxc6 Kf8) 44. Rb5 $18 {[%emt 0:02:21]} Rb6 $2 {[%emt 0:04:06]} (44... Kf8 45. Rb7 Rb6) 45. Rxb6 $18 Qxb6 {[%emt 0:00:09]} 46. Rc6 {[%emt 0:03:26]} Qd4 {[%emt 0:02:00]} 47. Qh5 {[%emt 0:00:52]} Qd7 {[%emt 0:01:55]} 48. Rb6 {[%emt 0:00:26]} Qf7 {[%emt 0:03:41]} 49. Qg5 {[%emt 0:01:43]} Rc8 {[%emt 0:03:59]} 50. Rb7 {[%emt 0:00:36]} ({Weaker is} 50. Rxb4 f3 51. Rc4 (51. Rb7 Qf6 $18) 51... Rxc4 52. bxc4 (52. dxc4 Qf4 $18) 52... Qf4 53. Bd5+ Kh8 54. Qh5+ Bh6 55. Bxf3 (55. Qxf3 Qxf3 56. Bxf3 Bf8 $16) 55... Kg7 $18) 50... Qf6 {[%emt 0:00:14]} 51. Qg4 {[%emt 0:03:29]} Rf8 {[%emt 0:01:49]} 52. Rxb4 {[%emt 0:01:15]} f3 $2 {[%emt 0:00:46]} (52... Qh6 53. Rc4 Kh8) 53. Rb7 {[%emt 0:00:31]} Qh6 {[%emt 0:01:35]} 54. Bxf3 {[%emt 0:01:29]} Kh8 $2 {[%emt 0:01:17]} (54... e4) 55. Be4 $18 {[%emt 0:02:23]} Rf4 {[%emt 0:01:42]} 56. Rb8+ {[%emt 0:01:24]} Bf8 $2 {[%emt 0:00:23]} (56... Rf8) 57. Qg3 $18 {[%emt 0:01:53]} Qh5 {[%emt 0:01:06]} 58. Ke1 {[%emt 0:00:26]} Qh6 {[%emt 0:00:19]} 59. Rc8 {[%emt 0:01:31]} (59. Bd5 $142 Re4+ 60. dxe4 (60. Bxe4 Qc1+ 61. Ke2 Qd1+ 62. Ke3 Qe2+ 63. Kxe2 $11) 60... Qc1+ 61. Ke2 Qb2+ 62. Kf3 Qc3+ 63. Kg4 Qxg3+ 64. fxg3) 59... Qh5 {[%emt 0:02:54]} 60. b4 {[%emt 0:00:28]} Rf6 {[%emt 0:00:36]} 61. b5 {[%emt 0:00:31]} Qh6 {[%emt 0:00:24]} 62. Qxe5 {[%emt 0:01:43]} Qg7 {[%emt 0:00:04]} 63. Qg3 $2 {[%emt 0:00:44]} (63. Qh5+ {mates} Qh6 64. Rxf8+ Kg7 65. Qxh6+ Rxh6 66. Rb8 Rh2 67. b6 Rh6 68. b7) 63... Qh6 $2 {[%emt 0:00:44]} (63... Qxg3 $18 64. fxg3 Kg7) 64. Rc6 {[%emt 0:00:44]} (64. Kf1 $142 Qg7 65. Qh3+ Qh6 66. Rxf8+ Kg7 67. Qxh6+ Rxh6 68. Rb8 Kf7 69. b6) 64... Bb4+ {[%emt 0:00:28]} 65. Kf1 {[%emt 0:00:24]} Bd6 {[%emt 0:00:05]} 66. Qg4 {[%emt 0:01:09]} Qh2 {[%emt 0:00:26]} 67. Bf5 {[%emt 0:00:37]} Qh6 {[%emt 0:00:55]} 68. Qh3 {[%emt 0:00:12]} (68. Rc8+ $142 Bf8 69. Qd4 Qh1+ 70. Ke2 Qh5+ 71. f3 Qh2+ 72. Kd1 Qh1+ 73. Kc2 Qg2+ 74. Kb1) 68... Qxh3+ $18 {[%emt 0:00:11]} 69. Bxh3 {[%emt 0:00:03]} Kg7 {[%emt 0:00:10]} 70. b6 {[%emt 0:00:30]} Be5 {[%emt 0:00:27]} 71. Rxf6 {[%emt 0:00:13]} Kxf6 {[%emt 0:00:04]} 72. b7 {[%emt 0:00:13]} Bb8 {[%emt 0:01:07]} 73. Ke2 {[%emt 0:00:27]} Ke5 {[%emt 0:00:05]} 74. Kf3 {[%emt 0:00:14]} Bc7 {[%emt 0:00:47]} 75. Kg4 {[%emt 0:00:15]} Kf6 {[%emt 0:00:20]} 76. d4 {[%emt 0:00:26]} Bb8 {[%emt 0:00:06]} 77. Kf3 {[%emt 0:00:26]} Bh2 {[%emt 0:00:31]} 78. Ke4 {[%emt 0:00:05]} Kg5 {[%emt 0:00:09]} 79. Kd5 {[%emt 0:00:17]} Kf6 {[%emt 0:00:05]} 80. Kc6 {[%emt 0:01:58]} Ke7 {[%emt 0:00:06]} 81. Kb6 {[%emt 0:00:18]} Bb8 {[%emt 0:00:06]} 82. f4 {[%emt 0:00:14]} Kf6 {[%emt 0:00:25]} 83. f5 {[%emt 0:00:34]} Ke7 {[%emt 0:00:06]} 84. Kc6 {[%emt 0:00:02]} Ba7 {[%emt 0:00:17]} 85. Kc7 {[%emt 0:00:22]} Bxd4 {[%emt 0:00:09]} 86. b8=Q {[%emt 0:00:05]} ({Stronger than} 86. f6+ Kxf6 87. Kd6 Be5+ 88. Kd5 Bf4 $11) 86... Be5+ {[%emt 0:00:06]} 87. Kc8 {[%emt 0:05:52]} Bxb8 {[%emt 0:00:03]} 88. Kxb8 {[%emt 0:00:00]} 1-0

[Event "Israeli Team-ch 2023"]
[Site "Petah Tikva"]
[Date "2023.02.03"]
[Round "5.14"]
[White "Mikhalevski, Alexander"]
[Black "Sutovsky, Emil"]
[Result "0-1"]
[ECO "A40"]
[WhiteElo "2414"]
[BlackElo "2615"]
[Annotator "TA"]
[PlyCount "92"]
[EventDate "2023.01.13"]
[EventCountry "ISR"]
[SourceTitle "playchess.com"]
[Source "ChessBase"]
[SourceQuality "1"]
[TimeControl "40/5400+30:1800+30"]

{[%evp 10,92,25,12,0,22,22,9,30,0,-17,-28,0,-63,-60,-74,-56,-78,-65,-67,-46,-86,-89,-120,-122,-116,-116,-110,-129,-118,-122,-114,-114,-114,-114,-120,-111,-111,-119,-182,-166,-181,-179,-200,-193,-170,-173,-170,-181,-174,-179,-220,-226,-214,-195,-225,-217,-208,-180,-238,-227,-348,-345,-332,-313,-301,-226,-265,-263,-544,-548,-543,-539,-814,-832,-1062,-1048,-1197,-1172,-879,-879,-1070,-1047,-29970,-29969]} 1. d4 {[%emt 0:00:03]} e6 {[%emt 0:06:38]} 2. c4 {[%emt 0:00:25]} b6 {[%emt 0:00:13]} 3. e4 {[%emt 0:02:57]} Bb4+ {[%emt 0:00:52]} 4. Nc3 {[%emt 0:00:27]} Bb7 {[%emt 0:00:31]} 5. Bd3 {[%emt 0:00:10]} f5 {[%emt 0:02:02]} 6. f3 {[%emt 0:00:10]} Qh4+ {[%emt 0:20:08] A40: Unusual replies to 1 d4.} 7. g3 {[%emt 0:00:30]} Qh5 {[%emt 0:00:27]} 8. exf5 {[%emt 0:00:10]} Nc6 $5 {[%emt 0:02:05][%mdl 4] [#] The position is equal. A promising side line.} 9. a3 $146 {[%emt 0:14:03]} (9. Nge2 $142) ({Predecessor:} 9. fxe6 dxe6 10. d5 exd5 11. cxd5 Ne5 12. Bb5+ c6 13. dxc6 Nxc6 14. Qa4 Bxc3+ 15. bxc3 {0-1 Tremblay,R (2216)-Noritsyn,N (2419) CAN-ch Guelph 2011 (4)}) 9... Bxc3+ $1 $11 {[%emt 0:11:27]} 10. bxc3 {[%emt 0:00:08]} O-O-O {[%emt 0:01:31]} 11. Ne2 {[%emt 0:29:04]} (11. Ra2 $11) 11... Qxf3 $15 {[%emt 0:01:25]} 12. Rf1 {[%emt 0:00:08]} Qh5 {[%emt 0:00:10] ...e5 would be deadly. Black is more active.} 13. fxe6 {[%emt 0:11:24]} dxe6 {[%emt 0:00:33]} 14. Nf4 {[%emt 0:00:38]} Qxh2 {[%emt 0:01:50]} 15. Qg4 {[%emt 0:00:50]} Nh6 {[%emt 0:05:17]} 16. Qxe6+ {[%emt 0:00:55]} ({Much worse is} 16. Qxg7 Rhg8 17. Qf6 Qxg3+ 18. Kd2 (18. Kd1 $2 e5 $19) 18... Ng4 19. Qxe6+ Kb8 $17) 16... Kb8 {[%emt 0:00:28]} 17. Qh3 {[%emt 0:00:11]} Rhe8+ {[%emt 0:06:26]} 18. Kd1 {[%emt 0:00:09]} Qxh3 {[%emt 0:00:27]} 19. Nxh3 {[%emt 0:00:06][%cal Oh3f2]} Ne5 {[%emt 0:01:31]} 20. Nf4 {[%emt 0:09:58]} Nxd3 {[%emt 0:02:21]} 21. Nxd3 {[%emt 0:00:13] White is weak on the light squares} Be4 $1 $36 {[%emt 0:07:58][%mdl 2048] Black is really pushing.} 22. Nb4 {[%emt 0:10:24]} c5 {[%emt 0:12:40]} 23. Bf4+ {[%emt 0:05:13]} Kc8 $1 {[%emt 0:00:01]} 24. Bxh6 {[%emt 0:00:08]} (24. Nc2 $17) 24... gxh6 $19 {[%emt 0:01:03]} 25. Nc2 {[%emt 0:01:44] [#]} Rg8 $1 {[%emt 0:02:14]} 26. Rf4 {[%emt 0:00:53] [#]} Rde8 {[%emt 0:00:07]} 27. Ne3 {[%emt 0:03:58]} Rxg3 {[%emt 0:00:27]} 28. Kd2 {[%emt 0:00:01]} Bg6 {[%emt 0:03:05]} 29. Re1 {[%emt 0:00:06]} Rh3 {[%emt 0:00:14]} 30. Rf2 {[%emt 0:04:59]} cxd4 {[%emt 0:01:47]} 31. cxd4 {[%emt 0:00:02]} Re4 {[%emt 0:00:03] Wards off Rf4} 32. d5 {[%emt 0:01:05]} Rd4+ {[%emt 0:00:02]} 33. Kc1 {[%emt 0:00:11]} Rd3 {[%emt 0:00:07]} 34. Nc2 {[%emt 0:00:19]} (34. Rf8+ {keeps fighting.} Kb7 35. Nc2) 34... Kd7 {[%emt 0:00:55] White must now prevent ...Rb3.} 35. Kb2 {[%emt 0:03:03]} (35. Rfe2 {was necessary.}) 35... Rb3+ {[%emt 0:00:28]} 36. Ka2 {[%emt 0:00:23]} Rbc3 {[%emt 0:00:58][%csl LRc2,LRc4]} 37. Nd4 {[%emt 0:01:06]} Rxa3+ {[%emt 0:02:16]} 38. Kb2 {[%emt 0:00:10]} Rad3 {[%emt 0:00:02]} 39. Nf5 {[%emt 0:02:12]} (39. Ne6) 39... Rb3+ {[%emt 0:01:18]} 40. Kc1 {[%emt 0:00:46]} Rhc3+ {[%emt 0:01:38]} 41. Kd1 {[%emt 0:09:56]} Rxc4 {[%emt 0:01:52]} 42. Re7+ {[%emt 0:00:12]} Kd8 {[%emt 0:00:04]} 43. Rxa7 {[%emt 0:00:05]} Rb1+ {[%emt 0:00:30]} 44. Kd2 {[%emt 0:00:05]} Rb2+ {[%emt 0:00:09]} 45. Ke3 {[%emt 0:00:16]} Rxf2 {[%emt 0:00:10]} 46. Ra8+ {[%emt 0:00:03]} Rc8 {[%emt 0:00:11] Black took control after the opening.   Weighted Error Value: White=0.76/Black=0.04 (flawless)} 0-1

[Event "Israeli Team-ch 2023"]
[Site "Petah Tikva"]
[Date "2023.02.03"]
[Round "5.15"]
[White "Alekseev, Evgeny"]
[Black "Gorodetzky, Matan"]
[Result "1-0"]
[ECO "C54"]
[WhiteElo "2575"]
[BlackElo "2333"]
[Annotator "TA"]
[PlyCount "77"]
[EventDate "2023.01.13"]
[EventCountry "ISR"]
[SourceTitle "playchess.com"]
[Source "ChessBase"]
[SourceQuality "1"]
[TimeControl "40/5400+30:1800+30"]

{[%evp 12,77,20,14,25,0,6,0,0,0,0,0,0,-9,13,0,24,0,0,0,11,0,0,0,0,0,25,25,35,35,131,131,244,259,253,215,250,202,277,257,291,266,273,273,272,254,265,256,431,425,438,441,425,429,526,510,543,541,522,514,900,895,1212,1135,1751,1716,29988,29989]} 1. e4 {[%emt 0:07:19]} e5 {[%emt 0:00:10]} 2. Bc4 {[%emt 0:01:51]} Nf6 {[%emt 0:01:14]} 3. d3 {[%emt 0:00:34]} Nc6 {[%emt 0:01:08]} 4. Nf3 {[%emt 0:03:39]} Bc5 {[%emt 0:01:11]} 5. O-O {[%emt 0:01:07]} d6 {[%emt 0:03:22]} 6. c3 {[%emt 0:01:13]} a6 {[%emt 0:00:17]} 7. Bb3 {[%emt 0:00:57]} h6 {[%emt 0:00:52] C54: Giuoco Piano: 4 c3 Nf6, main lines with 5 d4 and 5 d3.} 8. Be3 {[%emt 0:04:02]} O-O {[%emt 0:00:50]} 9. Nbd2 {[%emt 0:01:25]} Bxe3 {[%emt 0:00:49] The position is equal.} 10. fxe3 {[%emt 0:00:36]} Na5 {[%emt 0:00:34]} 11. Bc2 {[%emt 0:04:25]} c5 {[%emt 0:01:09]} 12. Qe1 {[%emt 0:02:01] [#]} Nc6 $146 {[%emt 0:10:53]} ({Predecessor:} 12... b5 13. Kh1 Be6 14. d4 Nc4 15. Nxc4 Bxc4 16. Rf2 Qe7 17. Rd2 b4 18. cxb4 cxb4 {½-½ Wang,Y (2426)-Ruan,L CHN-chT (Women) 2001 (2)}) 13. Qg3 {[%emt 0:06:00]} Kh8 {[%emt 0:04:51]} (13... b5 {looks sharper.} 14. Nh4 Kh7 15. Bb3 Nh5) 14. h3 {[%emt 0:05:01]} (14. Bb3 {with more complications.} Kh7 15. Nh4 Be6 16. Rf3) 14... Be6 {[%emt 0:08:02]} 15. Rf2 {[%emt 0:04:28]} Rc8 {[%emt 0:13:54]} 16. Raf1 {[%emt 0:07:27]} b5 {[%emt 0:04:11]} 17. Bb1 {[%emt 0:02:08]} Bd7 {[%emt 0:13:34]} 18. Bc2 {[%emt 0:16:02]} Qe7 {[%emt 0:05:47]} 19. Bd1 {[%emt 0:00:56]} Nh5 {[%emt 0:04:48]} 20. Qh2 {[%emt 0:04:22]} f5 {[%emt 0:04:39] [#] White stays focused until the end.} ({Black should try} 20... Nf6 $14) 21. Ne1 $1 $16 {[%emt 0:04:36][%csl LRf5,LRh5]} Qg5 {[%emt 0:03:01]} (21... Nf6 $16) 22. Bxh5 $18 {[%emt 0:01:34]} Qxh5 {[%emt 0:00:29]} 23. exf5 {[%emt 0:04:20]} Qg5 {[%emt 0:01:30]} (23... Bxf5 $2 24. e4 $18) 24. e4 {[%emt 0:03:14]} Qe3 {[%emt 0:02:34]} 25. g4 {[%emt 0:01:05]} Ne7 {[%emt 0:02:09]} 26. Kh1 {[%emt 0:02:59]} Bc6 {[%emt 0:01:03]} 27. Re2 {[%emt 0:01:24]} Qg5 {[%emt 0:00:24]} 28. Nef3 {[%emt 0:00:27]} Qf6 {[%emt 0:00:26]} 29. Qg3 {[%emt 0:00:28]} g5 $2 {[%emt 0:04:04] [#]} (29... Rcd8 30. Rg2 Rde8) 30. Rh2 {[%emt 0:02:05]} Kg7 {[%emt 0:00:58]} 31. h4 {[%emt 0:00:11]} Rh8 {[%emt 0:00:34]} 32. Kg2 {[%emt 0:00:11]} gxh4 {[%emt 0:02:07]} 33. Rxh4 {[%emt 0:01:38]} Rcg8 {[%emt 0:00:29]} 34. Rfh1 {[%emt 0:00:25][%cal Bf1h1,Bh1h6,Bh6d6][%mdl 32]} Kf8 {[%emt 0:00:10]} 35. Kf2 {[%emt 0:01:22]} Qf7 {[%emt 0:01:19]} (35... Be8 $142 36. Nf1 Nc6) 36. Rxh6 {[%emt 0:04:16]} Rxh6 {[%emt 0:00:06]} 37. Rxh6 {[%emt 0:00:03]} Qxa2 {[%emt 0:00:08]} 38. Rxd6 {[%emt 0:00:08]} Qxb2 {[%emt 0:00:33]} 39. Qxe5 {[%emt 0:00:11] Weighted Error Value: White=0.06 (flawless) /Black=0.48} 1-0

[Event "Israeli Team-ch 2023"]
[Site "Petah Tikva"]
[Date "2023.02.03"]
[Round "5.16"]
[White "Bitensky, Igor"]
[Black "Caspi, Israel"]
[Result "1/2-1/2"]
[ECO "C43"]
[WhiteElo "2370"]
[BlackElo "2472"]
[Annotator "TA"]
[PlyCount "52"]
[EventDate "2023.01.13"]
[EventCountry "ISR"]
[SourceTitle "playchess.com"]
[Source "ChessBase"]
[SourceQuality "1"]
[TimeControl "40/5400+30:1800+30"]

{[%evp 17,52,0,44,21,38,37,42,37,48,49,43,43,58,0,0,0,0,0,0,0,0,0,20,15,13,10,13,0,14,0,0,0,0,0,0,0,0]} 1. e4 {[%emt 1:31:00]} e5 {[%emt 0:05:19]} 2. Nf3 {[%emt 0:00:00]} Nf6 {[%emt 0:00:06]} 3. d4 {[%emt 0:00:00]} Nxe4 {[%emt 0:01:18]} 4. Bd3 {[%emt 0:00:00]} d5 {[%emt 0:00:49]} 5. Nxe5 {[%emt 0:00:00]} Nd7 {[%emt 0:01:17]} 6. Nxd7 {[%emt 0:00:00]} Bxd7 {[%emt 0:00:06]} 7. O-O {[%emt 0:00:00]} Bd6 {[%emt 0:01:10]} 8. Nc3 $1 {[%emt 0:00:00][%mdl 4] is now more promising than 8.c4.} Nxc3 {[%emt 0:03:31]} 9. bxc3 {[%emt 0:00:00]} Qh4 {[%emt 0:18:39][%csl Gd6][%cal Rh4h2] [#]} 10. g3 {[%emt 0:00:00] C43: Petroff Defence: 3 d4.} Qh3 {[%emt 0:03:26]} 11. Re1+ {[%emt 0:00:00]} Be6 $1 {[%emt 0:01:05]} 12. Rb1 {[%emt 0:00:00] White is slightly better.} (12. Bf1 $5 Qf5 $8 13. Bd3 $14) 12... O-O-O {[%emt 0:08:27]} 13. Bf1 {[%emt 0:00:00]} Qf5 {[%emt 0:07:46]} 14. Qe2 {[%emt 0:00:00] And now Qb5 would win.} c6 {[%emt 0:13:01] Wards off Qb5} 15. Rb3 {[%emt 0:00:00] [#]} (15. Rxb7 $1 $14 Kxb7 16. Qa6+ Kb8 17. Qxc6 Qxc2 18. Bg5) 15... Rde8 $146 {[%emt 0:13:08] The position is equal.} ({Predecessor:} 15... Rhe8 16. Be3 Re7 17. Reb1 Rdd7 18. a4 Qg4 19. Qxg4 Bxg4 {½-½ Mamedyarov,S (2760)-Kramnik,V (2799) Amber-blindfold 17th rapid 2008 (3)}) 16. Be3 {[%emt 0:00:00]} Kc7 {[%emt 0:06:05]} 17. Reb1 {[%emt 0:00:00]} Rb8 {[%emt 0:00:17]} 18. Bc1 {[%emt 0:00:00]} h5 {[%emt 0:01:56]} 19. h4 {[%emt 0:00:00]} f6 {[%emt 0:01:45]} 20. Ba3 {[%emt 0:00:00]} Bxa3 {[%emt 0:01:12]} 21. Rxa3 {[%emt 0:00:00]} a6 {[%emt 0:00:57]} 22. Qd2 {[%emt 0:00:00][%cal Oc3c4]} Rhe8 {[%emt 0:02:03]} 23. Bd3 {[%emt 0:00:24]} Qf3 {[%emt 0:00:50]} 24. Be2 {[%emt 0:00:33]} Qf5 {[%emt 0:00:24]} 25. Bd3 {[%emt 0:03:01]} Qf3 {[%emt 0:00:06]} 26. Be2 {[%emt 0:00:17]} Qf5 $1 {[%emt 0:00:02] Weighted Error Value: White=0.05 (flawless) /Black=0.08 (flawless)} 1/2-1/2